[Event "26th Triest Festival 2024"]
[Site "Triest"]
[Date "2024.09.03"]
[Round "6.1"]
[White "Barp, Alberto"]
[Black "Bosiocic, Marin"]
[Result "0-1"]
[Annotator "TA"]
[ECO "E11"]
[WhiteElo "2431"]
[BlackElo "2555"]
[PlyCount "82"]
[EventDate "2024.09.02"]
[EventType "swiss"]
[EventCountry "ITA"]
[SourceTitle "playchess.com"]
[Source "ChessBase"]
[SourceQuality "1"]
[TimeControl "5400+30"]

{[%evp 12,82,25,16,39,36,24,38,42,44,33,42,34,27,47,41,56,51,50,60,66,47,41,54,47,74,47,36,71,71,86,79,79,65,96,104,279,268,255,110,108,73,145,139,154,146,135,100,140,49,108,35,43,41,22,26,133,0,0,0,0,-49,-15,-31,-15,-29978,-29979,-29979,-29980,-29980,-29981,-29980,-29980]} 1. d4 {[%emt 0:00:03]} Nf6 {[%emt 0:00:06]} 2. c4 {[%emt 0:00:05]} e6 {[%emt 0:00:06]} 3. Nf3 {[%emt 0:00:04]} d5 {[%emt 0:00:08]} 4. g3 {[%emt 0:00:04]} Bb4+ {[%emt 0:00:09]} 5. Bd2 {[%emt 0:00:04]} a5 {[%emt 0:00:08]} 6. Bg2 {[%emt 0:00:44]} O-O {[%emt 0:00:07]} 7. Qc2 {[%emt 0:04:40]} c5 {[%emt 0:00:09]} 8. cxd5 {[%emt 0:00:09]} cxd4 {[%emt 0:00:07]} 9. Nxd4 {[%emt 0:01:09]} Qb6 {[%emt 0:00:45] White is slightly better.} 10. e3 {[%emt 0:00:18]} exd5 {[%emt 0:00:07]} 11. O-O {[%emt 0:00:51]} Nc6 {[%emt 0:00:04]} 12. Nxc6 {[%emt 0:02:47]} bxc6 {[%emt 0:00:06]} 13. Rc1 {[%emt 0:04:15]} Bd7 {[%emt 0:00:51]} 14. Nc3 {[%emt 0:01:06]} Rfe8 {[%emt 0:01:50]} 15. Na4 {[%emt 0:03:15]} Qb8 {[%emt 0:00:39]} 16. Bxb4 {[%emt 0:01:38]} axb4 {[%emt 0:00:13]} 17. Nc5 {[%emt 0:00:11]} Bg4 {[%emt 0:01:38]} 18. a4 {[%emt 0:10:12]} bxa3 {[%emt 0:01:09]} 19. Rxa3 {[%emt 0:00:39]} Rxa3 {[%emt 0:02:29]} 20. bxa3 {[%emt 0:00:11]} h5 {[%emt 0:04:42][%cal Bh7h5,Bh5h4][%mdl 32]} 21. h3 {[%emt 0:07:37]} Bc8 {[%emt 0:00:05]} 22. a4 {[%emt 0:04:50]} h4 {[%emt 0:00:07]} 23. g4 {[%emt 0:06:15]} (23. gxh4 $6 Qb4 $11) 23... d4 $2 {[%emt 0:19:34]} 24. exd4 $18 {[%emt 0:14:26]} (24. Bxc6 $6 Rd8 $18) 24... Qf4 {[%emt 0:04:44]} 25. Nd3 {[%emt 0:05:41]} (25. Bxc6 Rd8 26. Bg2 Qxd4) (25. a5 $18) 25... Qxd4 $16 {[%emt 0:00:47]} 26. Qc3 {[%emt 0:00:18]} Qd6 {[%emt 0:03:10]} (26... Rd8 $142 27. Qxd4 Rxd4) 27. Bxc6 {[%emt 0:01:48]} (27. Qxc6 $2 Qxd3 28. a5 Qa3 $19) 27... Bd7 {[%emt 0:00:23]} 28. Bxd7 {[%emt 0:02:17]} Qxd7 {[%emt 0:00:15]} 29. Nc5 {[%emt 0:02:04]} Qd5 {[%emt 0:03:45]} 30. Qd3 {[%emt 0:03:37]} (30. a5 $16) 30... Qg5 {[%emt 0:01:01]} ({Better is} 30... Qa8 $1 $14) 31. Qc4 {[%emt 0:04:20]} (31. Rc4 $16) 31... Rc8 $1 $14 {[%emt 0:03:22] [#] ...Nd7 would now be deadly.} 32. f4 $1 {[%emt 0:03:39]} Qg6 {[%emt 0:00:36]} 33. Qa6 {[%emt 0:06:58]} Rd8 {[%emt 0:05:37]} (33... Re8 $11) 34. Qc6 {[%emt 0:01:07]} (34. a5 $16) 34... Rb8 {[%emt 0:05:34]} 35. g5 {[%emt 0:05:56]} Qf5 {[%emt 0:07:15]} 36. Qd6 {[%emt 0:00:12]} (36. gxf6 $11 Qxh3 37. Ne4 Qg4+ 38. Kf1 Qh3+ 39. Ke2 Qg2+ (39... Rb2+ 40. Rc2 $16) 40. Ke3 Qh3+ 41. Ke2 (41. Kd4 Rd8+ 42. Nd6 Qe6 $11) 41... Qg2+ (41... Rb2+ $2 42. Rc2 $18) 42. Ke3 Qh3+ 43. Kd2 (43. Kd4 Rd8+ 44. Nd6 Qe6 $11) 43... Rd8+ 44. Ke2 (44. Kc2 $2 Qd3+ 45. Kb2 Rb8+ $19) 44... Qg4+ 45. Ke3 Qh3+ 46. Kf2 Qh2+ 47. Ke3 Qh3+ 48. Ke2 Qg4+ 49. Kf2 Qxf4+ 50. Ke2 Qg4+ 51. Ke3 Qh3+ 52. Ke2 Qg4+ 53. Ke1 Qg1+ 54. Ke2 Qg4+) 36... Re8 $1 $15 {[%emt 0:02:11]} 37. gxf6 {[%emt 0:04:59] Strongly threatening Qd7.} Qxh3 {[%emt 0:00:06] ( -> ...Qe3+)} 38. Qd4 {[%emt 0:00:24][%mdl 8192] [#]} (38. Qd2 $11) 38... Re3 {[%emt 0:02:35] Black mates.} 39. Ne4 {[%emt 0:00:12]} Qg4+ {[%emt 0:00:43]} 40. Kf1 {[%emt 0:00:13]} Qxf4+ {[%emt 0:00:30]} 41. Kg1 {[%emt 0:00:28]} Rg3+ {[%emt 0:00:29] What a bad dream for White.   Weighted Error Value: White=0.35/Black=0.19 (very precise) .  Loses game:     	White=1     	Black=1      Mistake:       	White=5     	Black=3      Inaccurate:     	White=1     	Black=3      OK:         	White=13    	Black=6      Best:        	White=1     	Black=3      Strong:       	White=1     	Black=2} 0-1

[Event "26th Triest Festival 2024"]
[Site "Triest"]
[Date "2024.09.03"]
[Round "6.2"]
[White "Baklan, Vladimir"]
[Black "Wong, Zhenyong Jayden"]
[Result "1/2-1/2"]
[Annotator "TA"]
[ECO "B47"]
[WhiteElo "2535"]
[BlackElo "2397"]
[PlyCount "171"]
[EventDate "2024.09.02"]
[EventType "swiss"]
[EventCountry "ITA"]
[SourceTitle "playchess.com"]
[Source "ChessBase"]
[SourceQuality "1"]
[TimeControl "5400+30"]

{[%evp 89,171,160,145,165,151,132,138,133,133,85,85,85,85,85,85,59,59,59,85,85,85,85,85,85,85,85,85,85,86,75,75,75,75,75,123,0,54,55,68,60,60,68,68,60,68,8,68,8,8,8,55,55,55,8,62,8,123,123,123,123,123,138,135,143,143,135,131,135,143,143,143,143,143,143,143,143,143,8,8,8,8,8,8,8]} 1. e4 {[%emt 0:01:11]} c5 {[%emt 0:01:15]} 2. Nf3 {[%emt 0:00:30]} e6 {[%emt 0:00:06]} 3. d4 {[%emt 0:00:46]} cxd4 {[%emt 0:00:08]} 4. Nxd4 {[%emt 0:00:02]} Nc6 {[%emt 0:00:33]} 5. Nc3 {[%emt 0:00:11]} Qc7 {[%emt 0:00:32]} 6. f4 {[%emt 0:01:25]} a6 {[%emt 0:00:21]} 7. Nxc6 {[%emt 0:00:08]} Qxc6 {[%emt 0:00:43]} 8. Bd3 {[%emt 0:00:12]} b5 {[%emt 0:00:19]} 9. Qe2 {[%emt 0:00:21]} Bb7 {[%emt 0:00:43]} 10. Bd2 {[%emt 0:01:48]} Rc8 {[%emt 0:00:40] B47: Sicilian: Taimanov: 5 Nc3 Qc7 6 f4, 6 g3 and 6 Be2.} 11. a3 {[%emt 0:05:29]} Nf6 {[%emt 0:01:18]} 12. e5 {[%emt 0:07:24]} Nd5 {[%emt 0:00:48]} 13. Ne4 {[%emt 0:03:13]} Be7 {[%emt 0:12:43]} 14. f5 $146 {[%emt 0:15:58]} ({Predecessor:} 14. O-O O-O 15. Kh1 f5 16. exf6 Nxf6 17. Ng5 h6 18. Nf3 Bd6 19. Rae1 Qd5 20. Ne5 Bxe5 21. Qxe5 Qxg2# {0-1 Baskin,R (2451)-Hansen,E (2609) Titled Tuesday intern op 02nd May Late blitz 2023 (10)}) 14... Qc7 {[%emt 0:11:09]} 15. Ng3 {[%emt 0:01:41]} Bc5 {[%emt 0:12:24]} 16. c3 {[%emt 0:05:32]} g6 {[%emt 0:07:40]} 17. fxe6 {[%emt 0:10:11]} dxe6 {[%emt 0:01:32]} 18. Rf1 {[%emt 0:00:03]} O-O {[%emt 0:03:08]} 19. Ne4 {[%emt 0:01:45]} Be7 {[%emt 0:02:02]} 20. Nf6+ {[%emt 0:01:50]} Bxf6 {[%emt 0:01:27]} 21. exf6 {[%emt 0:00:04]} e5 {[%emt 0:06:38]} 22. Be4 {[%emt 0:03:36]} Rfd8 {[%emt 0:16:30]} 23. O-O-O {[%emt 0:05:08]} Qc4 {[%emt 0:04:57]} 24. Qxc4 {[%emt 0:03:38]} Rxc4 {[%emt 0:00:36]} 25. Bc2 {[%emt 0:03:12]} Rc6 {[%emt 0:03:08]} 26. Bg5 {[%emt 0:00:35]} Rcd6 {[%emt 0:02:34]} 27. g4 {[%emt 0:11:26]} e4 {[%emt 0:02:42]} 28. Rd4 {[%emt 0:04:35]} Nc7 {[%emt 0:02:51]} 29. Rxd6 {[%emt 0:04:58]} Rxd6 {[%emt 0:00:01]} 30. Re1 {[%emt 0:00:05]} Ne8 {[%emt 0:02:41]} 31. Rf1 {[%emt 0:00:13]} h6 {[%emt 0:00:46]} 32. Bxh6 {[%emt 0:00:05]} Nxf6 {[%emt 0:01:06]} 33. h3 {[%emt 0:00:52]} Re6 {[%emt 0:01:46]} 34. Re1 {[%emt 0:01:12]} Kh7 {[%emt 0:00:33]} 35. Bg5 {[%emt 0:00:44]} Kg7 {[%emt 0:01:01]} 36. Be3 {[%emt 0:00:42]} Nd7 {[%emt 0:00:33]} 37. Rd1 {[%emt 0:02:12]} Ne5 {[%emt 0:00:18]} 38. g5 {[%emt 0:00:16]} f6 {[%emt 0:00:30]} 39. Bd4 {[%emt 0:00:50]} Kf7 {[%emt 0:00:34]} 40. Bb3 {[%emt 0:02:23]} Nc4 {[%emt 0:00:24]} 41. gxf6 {[%emt 0:00:31]} e3 {[%emt 0:00:47]} 42. Re1 {[%emt 0:01:06]} Bd5 {[%emt 0:00:31]} 43. Bd1 {[%emt 0:00:42]} Bg2 {[%emt 0:00:31]} 44. h4 {[%emt 0:00:59]} Nd6 {[%emt 0:00:28]} 45. Rxe3 {[%emt 0:00:50]} (45. Bxe3 Nc4 46. Bd2 $16) 45... Rxe3 {[%emt 0:00:05]} 46. Bxe3 {[%emt 0:00:03]} Kxf6 {[%emt 0:00:07]} 47. Bg4 {[%emt 0:00:31]} Ke5 {[%emt 0:00:48]} 48. Bd7 {[%emt 0:00:17]} Be4 {[%emt 0:00:47]} 49. a4 {[%emt 0:02:07]} ({Better is} 49. Bc5 {Bxd6+ is the strong threat.} Nf5 50. Bf2) 49... Bf5 $16 {[%emt 0:00:19]} 50. Bc6 {[%emt 0:00:04]} Be4 {[%emt 0:00:16]} 51. axb5 {[%emt 0:00:19]} axb5 {[%emt 0:00:10]} 52. Bd7 {[%emt 0:00:35]} Bf5 $1 {[%emt 0:00:04]} 53. Bxf5 {[%emt 0:02:30]} Kxf5 {[%emt 0:01:49]} 54. Kc2 {[%emt 0:00:00]} Ke4 {[%emt 0:00:32]} 55. Bg5 {[%emt 0:00:00]} Nc4 {[%emt 0:00:31]} 56. Bd8 {[%emt 0:00:00]} Kd5 {[%emt 0:00:26]} 57. Bc7 {[%emt 0:00:00]} Kc6 {[%emt 0:00:24]} 58. Bf4 {[%emt 0:00:00]} Kd5 {[%emt 0:00:17]} 59. b3 {[%emt 0:00:00]} Na5 {[%emt 0:00:51]} 60. Bc7 {[%emt 0:00:04]} Nb7 {[%emt 0:00:31]} 61. Bb6 {[%emt 0:00:04]} Ke4 {[%emt 0:00:32]} (61... Kc6 $142 62. Ba7 Kd5) 62. Bc7 {[%emt 0:02:36]} (62. c4 $16 bxc4 63. bxc4) 62... Nc5 {[%emt 0:00:23]} (62... Kd5 $11) 63. Bd6 {[%emt 0:00:03]} Nb7 {[%emt 0:00:38]} 64. Be7 {[%emt 0:00:09]} Na5 {[%emt 0:00:07]} 65. Bd8 {[%emt 0:00:34]} Nc6 {[%emt 0:00:25]} 66. Bc7 {[%emt 0:00:04]} Ne7 {[%emt 0:00:53]} 67. Bb6 {[%emt 0:00:58]} (67. Kd2 $1 $14) 67... Nc6 {[%emt 0:00:20]} (67... Nf5 $11) 68. c4 {[%emt 0:00:08]} ({White should play} 68. Kd2 $14) 68... bxc4 $11 {[%emt 0:00:26]} 69. bxc4 {[%emt 0:00:03]} Ne5 {[%emt 0:00:46]} (69... Kf5 $11 {should be considered.}) 70. Kc3 $14 {[%emt 0:00:07]} Nc6 {[%emt 0:00:19]} 71. Bc7 {[%emt 0:00:07]} (71. Bf2 $1 $14) 71... Ke3 {[%emt 0:00:40]} ({Black should try} 71... Kf3 $11) 72. c5 {[%emt 0:00:23]} (72. Bg3 $1 $14) 72... Ke4 {[%emt 0:00:11]} (72... Kf3 $1 $11 {keeps the balance.}) 73. Kc4 $16 {[%emt 0:00:03]} Ne7 {[%emt 0:00:28]} 74. Bd8 {[%emt 0:00:06]} Nc6 {[%emt 0:00:20]} 75. Bf6 {[%emt 0:00:04]} Nb8 {[%emt 0:00:47]} 76. Be7 {[%emt 0:00:46]} Nc6 {[%emt 0:00:06]} 77. Bd6 {[%emt 0:00:08]} Nd4 {[%emt 0:00:47]} 78. Bg3 {[%emt 0:00:15]} Nc6 {[%emt 0:00:17]} 79. Kb5 {[%emt 0:00:15]} Kd5 {[%emt 0:00:08]} 80. Kb6 {[%emt 0:00:12]} Nd4 {[%emt 0:00:33]} 81. Bf2 {[%emt 0:06:51]} Nc6 {[%emt 0:00:15]} 82. Kc7 {[%emt 0:00:00]} Ne5 {[%emt 0:00:14]} 83. Kd8 {[%emt 0:00:00]} (83. Bg1 $16) 83... Kc6 $11 {[%emt 0:01:38]} 84. Ke7 {[%emt 0:00:00]} Nf3 {[%emt 0:00:10]} 85. Kf6 {[%emt 0:00:00]} Nxh4 {[%emt 0:00:13]} 86. Bxh4 {[%emt 0:00:00]} 1/2-1/2

[Event "26th Triest Festival 2024"]
[Site "Triest"]
[Date "2024.09.03"]
[Round "6.3"]
[White "Doric, Darko"]
[Black "Marn, Jan"]
[Result "1-0"]
[Annotator "TA"]
[ECO "A48"]
[WhiteElo "2443"]
[BlackElo "2344"]
[PlyCount "69"]
[EventDate "2024.09.02"]
[EventType "swiss"]
[EventCountry "ITA"]
[SourceTitle "playchess.com"]
[Source "ChessBase"]
[SourceQuality "1"]
[TimeControl "5400+30"]

{[%evp 16,69,35,43,33,30,45,33,62,49,63,50,70,79,71,14,23,16,23,20,27,0,20,10,15,0,35,35,28,28,28,28,52,49,58,27,29,32,57,80,664,687,1225,1210,1148,1104,1466,1593,1989,1501,1316,693,29988,29989,29996,344]} 1. d4 {[%emt 0:00:04]} Nf6 {[%emt 0:00:05]} 2. Nf3 {[%emt 0:00:16]} g6 {[%emt 0:00:53][%cal Bg7g6,Bg6g5][%mdl 32]} 3. Bg5 {[%emt 0:00:28]} Bg7 {[%emt 0:00:11]} 4. c3 {[%emt 0:00:30]} d6 {[%emt 0:00:56]} 5. Nbd2 {[%emt 0:00:12][%cal Bb1d2,Bd2c4,Bc4e3][%mdl 32]} h6 {[%emt 0:03:10]} 6. Bh4 {[%emt 0:00:26]} g5 {[%emt 0:00:23]} 7. Bg3 {[%emt 0:00:02]} Nh5 {[%emt 0:00:37]} 8. e4 {[%emt 0:00:19]} Nd7 {[%emt 0:01:17]} 9. Nc4 {[%emt 0:00:35]} Nxg3 {[%emt 0:02:25]} 10. hxg3 {[%emt 0:00:02]} e6 {[%emt 0:00:09]} 11. Bd3 {[%emt 0:03:00]} b6 {[%emt 0:00:21] White is slightly better.} 12. Qe2 {[%emt 0:00:58] White has more active pieces. The black rooks are passive.} Bb7 {[%emt 0:00:09]} 13. a4 {[%emt 0:07:59]} a6 {[%emt 0:01:24]} 14. Ne3 {[%emt 0:04:25]} Qe7 {[%emt 0:00:14]} 15. g4 {[%emt 0:07:09]} (15. Nd2 $16) 15... O-O $11 {[%emt 0:04:38]} 16. O-O {[%emt 0:06:19]} c5 {[%emt 0:01:58]} 17. d5 {[%emt 0:01:32]} Nf6 {[%emt 0:04:01][%cal Re6d5]} 18. c4 {[%emt 0:04:11]} Nd7 {[%emt 0:02:50]} 19. Rab1 {[%emt 0:08:27]} Bc8 {[%emt 0:06:40]} 20. g3 {[%emt 0:03:43]} Ne5 {[%emt 0:02:19]} 21. Nxe5 {[%emt 0:07:35]} Bxe5 {[%emt 0:00:28]} 22. Kg2 {[%emt 0:01:13]} Bd7 {[%emt 0:00:18]} 23. b3 {[%emt 0:00:16]} Rab8 {[%emt 0:02:12]} 24. f4 {[%emt 0:09:07]} Bd4 {[%emt 0:01:28][%cal Ob6b5]} 25. Rh1 {[%emt 0:00:25][%cal Bf1h1,Bh1h5,Bh5h6,Bh6g6][%mdl 32]} Kg7 $1 {[%emt 0:06:33]} 26. Rh5 {[%emt 0:01:46][%cal Oe4e5]} Bxe3 {[%emt 0:11:21]} 27. Qxe3 {[%emt 0:00:09]} f6 {[%emt 0:00:04][%mdl 8192] This move loses the game for Black.} (27... exd5 $16 28. fxg5 Bxg4 29. gxh6+ (29. Rxh6 dxe4 30. Qxe4 Qxe4+ 31. Bxe4 Rbe8 $16) 29... Kh8 30. Rxd5 f5) 28. e5 $18 {[%emt 0:06:47]} dxe5 {[%emt 0:11:43] [#]} 29. Rxh6 $3 {[%emt 0:04:28][%mdl 512]} Rh8 {[%emt 0:00:45] Wards off Rh7+} 30. Rg6+ {[%emt 0:00:21]} Kf7 {[%emt 0:00:07]} 31. fxe5 {[%emt 0:00:48]} f5 {[%emt 0:05:57]} 32. gxf5 {[%emt 0:02:16]} exf5 {[%emt 0:00:12]} 33. Qxg5 {[%emt 0:03:53]} Qxe5 {[%emt 0:00:10] [#]} 34. Re1 $3 {[%emt 0:00:17][%mdl 512]} Qxe1 {[%emt 0:02:01]} (34... Rh2+ 35. Kxh2) 35. Qf6+ {[%emt 0:00:07] Weighted Error Value: White=0.46/Black=0.61.  Loses game:     	---       	Black=1      Mistake:       	White=1     	---        Inaccurate:     	White=1     	Black=3      OK:         	White=7     	Black=5      Best:        	White=1     	---        Strong:       	---       	Black=1} (35. Bxf5 {gets mated.} Qh1+ 36. Kf2 Rh2+ 37. Ke3 Qg1+ 38. Kf3 Qd1+ (38... Rf2+ {leads to mate.} 39. Kg4 Qd1+ 40. Kh3 Rh8+ 41. Qh6 Rxh6+ 42. Rxh6 Bxf5+ 43. Kh4 Qg4#) 39. Kf4 Qd4+ 40. Be4 Rf2#) 1-0

[Event "26th Triest Festival 2024"]
[Site "Triest"]
[Date "2024.09.03"]
[Round "6.4"]
[White "Gong, Qianyun"]
[Black "Lumachi, Gabriele"]
[Result "1/2-1/2"]
[Annotator "RC"]
[ECO "B12"]
[WhiteElo "2250"]
[BlackElo "2440"]
[PlyCount "193"]
[EventDate "2024.09.02"]
[EventType "swiss"]
[EventCountry "ITA"]
[SourceTitle "playchess.com"]
[Source "ChessBase"]
[SourceQuality "1"]
[TimeControl "5400+30"]

1. e4 {[%emt 0:01:28]} c6 {[%emt 0:00:06]} 2. d4 {[%emt 0:00:22]} d5 {[%emt 0:00:07]} 3. e5 {[%emt 0:00:11]} Bf5 {[%emt 0:00:08]} 4. h4 {[%emt 0:00:36]} h5 {[%emt 0:00:07]} 5. c4 {[%emt 0:00:11]} e6 {[%emt 0:00:08]} 6. Nc3 {[%emt 0:00:19]} Bb4 {[%emt 0:00:07]} 7. Bd3 {[%emt 0:02:54]} dxc4 {[%emt 0:12:47]} 8. Bxf5 {[%emt 0:10:02]} exf5 {[%emt 0:00:23]} 9. Nf3 {[%emt 0:02:06]} Na6 {[%emt 0:06:55]} 10. O-O {[%emt 0:02:44]} Nc7 {[%emt 0:00:45]} 11. Ne2 {[%emt 0:03:07]} Ne7 {[%emt 0:06:51]} 12. Bg5 {[%emt 0:09:00]} Ne6 {[%emt 0:00:43]} 13. Qc2 {[%emt 0:05:52]} b5 {[%emt 0:02:22]} 14. a3 {[%emt 0:00:28]} Ba5 {[%emt 0:00:48]} 15. Bxe7 {[%emt 0:00:17]} Qxe7 {[%emt 0:00:13]} 16. b3 {[%emt 0:00:09]} g6 {[%emt 0:11:54]} 17. bxc4 {[%emt 0:00:08]} Qd7 {[%emt 0:01:11]} 18. Rfd1 {[%emt 0:09:11]} bxc4 {[%emt 0:07:24]} 19. Qxc4 {[%emt 0:01:07]} Rc8 {[%emt 0:00:13]} 20. Qc1 {[%emt 0:03:18]} Kf8 {[%emt 0:06:16]} 21. Nf4 {[%emt 0:00:59]} Nxf4 {[%emt 0:01:46]} 22. Qxf4 {[%emt 0:00:05]} Kg7 {[%emt 0:03:05]} 23. Rac1 {[%emt 0:05:35]} Bb6 {[%emt 0:00:44]} 24. Rd3 {[%emt 0:02:01]} Qd5 {[%emt 0:00:31]} 25. Rcd1 {[%emt 0:02:59]} Rhe8 {[%emt 0:00:41]} 26. Ng5 {[%emt 0:04:47]} Bd8 {[%emt 0:03:41]} 27. Nf3 {[%emt 0:03:29]} Be7 {[%emt 0:01:25]} 28. g3 {[%emt 0:07:28]} Rb8 {[%emt 0:02:12]} 29. Ne1 {[%emt 0:06:37]} Rb2 {[%emt 0:02:01]} 30. Ng2 {[%emt 0:00:42]} Reb8 {[%emt 0:04:50]} 31. Qe3 {[%emt 0:02:25]} Rb1 {[%emt 0:00:52]} 32. Qe1 {[%emt 0:03:23]} Rxd1 {[%emt 0:03:08]} 33. Qxd1 {[%emt 0:00:14]} Qa2 {[%emt 0:00:17]} 34. Qf3 {[%emt 0:04:11]} Rb1+ {[%emt 0:02:30]} 35. Kh2 {[%emt 0:01:50]} Rf1 {[%emt 0:00:51]} 36. Rc3 {[%emt 0:00:20]} Qa1 {[%emt 0:07:17]} 37. Nf4 {[%emt 0:00:57]} Rxf2+ {[%emt 0:00:31]} 38. Qxf2 {[%emt 0:00:03]} Qxc3 {[%emt 0:00:07]} 39. a4 {[%emt 0:01:12]} a5 {[%emt 0:03:21]} 40. e6 {[%emt 0:01:39]} Bd6 {[%emt 0:01:51]} 41. exf7 {[%emt 0:01:43]} Bxf4 {[%emt 0:00:14]} 42. Qxf4 {[%emt 0:00:21]} Qc2+ {[%emt 0:00:17]} 43. Kg1 {[%emt 0:00:48]} Qxa4 {[%emt 0:04:47]} 44. f8=Q+ {[%emt 0:00:09]} Kxf8 {[%emt 0:00:15]} 45. Qd6+ {[%emt 0:00:02]} Ke8 {[%emt 0:00:31]} 46. Qxg6+ {[%emt 0:01:03]} Kd8 {[%emt 0:00:28]} 47. Qd6+ {[%emt 0:04:27]} Kc8 {[%emt 0:00:05]} 48. Qc5 {[%emt 0:00:31]} Kb7 {[%emt 0:01:23]} 49. Kf2 {[%emt 0:00:34]} Qa2+ {[%emt 0:00:29]} 50. Ke3 {[%emt 0:00:05]} Qd5 {[%emt 0:01:04]} 51. Qc3 {[%emt 0:00:27]} a4 {[%emt 0:02:06]} 52. Qb4+ {[%emt 0:00:24]} Qb5 {[%emt 0:00:06]} 53. Qe7+ {[%emt 0:00:05]} Ka6 {[%emt 0:00:08]} 54. Qe8 {[%emt 0:00:26]} Ka5 {[%emt 0:00:22]} 55. Kf4 {[%emt 0:00:37]} Qd5 {[%emt 0:01:01]} 56. Qe1+ {[%emt 0:00:18]} Kb5 {[%emt 0:00:34]} 57. Qb1+ {[%emt 0:00:06]} Ka6 {[%emt 0:01:59]} 58. Qb4 {[%emt 0:00:06]} Qa5 {[%emt 0:01:04]} 59. Qd6 {[%emt 0:00:44]} Kb7 {[%emt 0:00:29]} 60. Qf8 {[%emt 0:00:24]} a3 {[%emt 0:00:22]} 61. d5 {[%emt 0:01:47]} Qd2+ {[%emt 0:00:48]} 62. Ke5 {[%emt 0:00:04]} Qxd5+ {[%emt 0:00:14]} 63. Kf6 {[%emt 0:00:03]} Qd4+ {[%emt 0:00:50]} 64. Kg6 {[%emt 0:00:09]} Qg4+ {[%emt 0:00:58]} 65. Kh6 {[%emt 0:00:09]} Qxg3 {[%emt 0:00:40]} 66. Qb4+ {[%emt 0:00:11]} Kc8 {[%emt 0:00:15]} 67. Qf8+ {[%emt 0:00:11]} Kd7 {[%emt 0:00:09]} 68. Qxf5+ {[%emt 0:00:27]} Kd6 {[%emt 0:00:18]} 69. Qf8+ {[%emt 0:00:30]} Kd5 {[%emt 0:00:13]} 70. Qf7+ {[%emt 0:00:31]} Kd4 {[%emt 0:00:57]} 71. Qd7+ {[%emt 0:00:11]} Kc5 {[%emt 0:00:35]} 72. Qa7+ {[%emt 0:00:08]} Kc4 {[%emt 0:00:55]} 73. Qa4+ {[%emt 0:02:09]} Kd5 {[%emt 0:00:02]} 74. Qa5+ {[%emt 0:01:07]} c5 {[%emt 0:00:08]} 75. Kxh5 {[%emt 0:00:33]} Qe5+ {[%emt 0:00:54]} 76. Kg6 {[%emt 0:00:12]} Qe4+ {[%emt 0:00:05]} 77. Kg5 {[%emt 0:00:07]} Qe7+ {[%emt 0:00:38]} 78. Kg4 {[%emt 0:00:31]} Qe2+ {[%emt 0:00:13]} 79. Kg5 {[%emt 0:00:16]} Qg2+ {[%emt 0:00:10]} 80. Kh6 {[%emt 0:00:10]} Qb2 {[%emt 0:00:41]} 81. h5 {[%emt 0:00:20]} a2 {[%emt 0:00:32]} 82. Qa8+ {[%emt 0:00:05]} Kc4 {[%emt 0:00:42]} 83. Qe4+ {[%emt 0:00:07]} Kc3 {[%emt 0:00:47]} 84. Qe5+ {[%emt 0:00:27]} Kb3 {[%emt 0:00:16]} 85. Qd5+ {[%emt 0:00:54]} c4 {[%emt 0:00:50]} 86. Qb5+ {[%emt 0:00:35]} Kc3 {[%emt 0:00:05]} 87. Qe5+ {[%emt 0:00:14]} Kc2 {[%emt 0:00:34]} 88. Qf5+ {[%emt 0:00:16]} Kc1 {[%emt 0:01:08]} 89. Qf1+ {[%emt 0:00:04]} Kd2 {[%emt 0:00:05]} 90. Qf2+ {[%emt 0:00:11]} Kc3 {[%emt 0:00:20]} 91. Qf6+ {[%emt 0:00:07]} Kb3 {[%emt 0:01:19]} 92. Qb6+ {[%emt 0:00:07]} Kc2 {[%emt 0:00:34]} 93. Qg6+ {[%emt 0:00:24]} Kc3 {[%emt 0:00:37]} 94. Qf6+ {[%emt 0:00:09]} Kb3 {[%emt 0:00:16]} 95. Qb6+ {[%emt 0:00:04]} Kc2 {[%emt 0:00:30]} 96. Qg6+ {[%emt 0:00:04]} Kc1 {[%emt 0:00:28]} 97. Qg1+ {[%emt 0:00:15]} 1/2-1/2

[Event "26th Triest Festival 2024"]
[Site "Triest"]
[Date "2024.09.03"]
[Round "6.5"]
[White "Valsecchi, Alessio"]
[Black "Brilej, Jaka"]
[Result "1-0"]
[Annotator "RC"]
[ECO "B90"]
[WhiteElo "2475"]
[BlackElo "2280"]
[PlyCount "61"]
[EventDate "2024.09.02"]
[EventType "swiss"]
[EventCountry "ITA"]
[SourceTitle "playchess.com"]
[Source "ChessBase"]
[SourceQuality "1"]
[TimeControl "5400+30"]

1. e4 {[%emt 0:00:03]} c5 {[%emt 0:04:37]} 2. Nf3 {[%emt 0:00:07]} d6 {[%emt 0:00:05]} 3. d4 {[%emt 0:00:13]} cxd4 {[%emt 0:00:26]} 4. Nxd4 {[%emt 0:00:06]} Nf6 {[%emt 0:00:07]} 5. Nc3 {[%emt 0:00:06]} a6 {[%emt 0:00:05]} 6. Be3 {[%emt 0:04:23]} e5 {[%emt 0:00:38]} 7. Nb3 {[%emt 0:00:07]} Be7 {[%emt 0:00:07]} 8. h3 {[%emt 0:01:39]} h5 {[%emt 0:03:40]} 9. Be2 {[%emt 0:07:10]} Be6 {[%emt 0:03:42]} 10. O-O {[%emt 0:03:11]} Nbd7 {[%emt 0:00:34]} 11. f4 {[%emt 0:04:34]} Rc8 {[%emt 0:02:04]} 12. Qe1 {[%emt 0:07:11]} b5 {[%emt 0:11:20]} 13. Bd3 {[%emt 0:04:04]} exf4 {[%emt 0:06:58]} 14. Bxf4 {[%emt 0:02:35]} Ne5 {[%emt 0:00:07]} 15. Nd4 {[%emt 0:02:32]} O-O {[%emt 0:03:48]} 16. a4 {[%emt 0:10:13]} Nxd3 {[%emt 0:04:34]} 17. cxd3 {[%emt 0:00:47]} b4 {[%emt 0:00:20]} 18. Nce2 {[%emt 0:01:38]} d5 {[%emt 0:00:48]} 19. e5 {[%emt 0:00:36]} Nd7 {[%emt 0:00:52]} 20. Qg3 {[%emt 0:02:05]} Kh7 {[%emt 0:06:58]} 21. Be3 {[%emt 0:06:32]} Bh4 {[%emt 0:02:30]} 22. Qf3 {[%emt 0:00:33]} g6 {[%emt 0:00:10]} 23. Qf4 {[%emt 0:01:01]} Kg8 {[%emt 0:01:23]} 24. Nf3 {[%emt 0:01:38]} Be7 {[%emt 0:00:36]} 25. Qh6 {[%emt 0:02:53]} Re8 {[%emt 0:02:24]} 26. Ng5 {[%emt 0:00:28]} Nf8 {[%emt 0:00:17]} 27. Nd4 {[%emt 0:03:22]} Bc5 {[%emt 0:03:06]} 28. Ndxe6 {[%emt 0:01:52]} Bxe3+ {[%emt 0:00:09]} 29. Kh1 {[%emt 0:00:06]} Rxe6 {[%emt 0:00:16]} 30. Rxf7 {[%emt 0:00:10]} Qxg5 {[%emt 0:00:10]} 31. Qg7# {[%emt 0:00:07]} 1-0